[Event "14th HSG Open 2019-BC"]
[Site "Hilversum"]
[Date "2019.06.23"]
[Round "6.2"]
[White "Ibrahim, Geomerd"]
[Black "Mensing, Adrian"]
[Result "1-0"]
[ECO "C55"]
[WhiteElo "1935"]
[BlackElo "1938"]
[Annotator "NA"]
[PlyCount "93"]
[EventDate "2019.06.21"]
[EventType "swiss"]
[EventCountry "NED"]
[SourceTitle "playchess.com"]
[Source "ChessBase"]
[SourceQuality "1"]
[TimeControl "6600+10"]

1. e4 {[%emt 0:02:28]} e5 {[%emt 0:00:00]} 2. Nf3 {[%emt 0:00:09]} Nc6 {[%emt 0:00:01]} 3. Bc4 {[%emt 0:00:10]} Nf6 {[%emt 0:00:05]} 4. d3 {[%emt 0:01:05]} Be7 {[%emt 0:00:06]} 5. O-O {[%emt 0:00:38]} O-O {[%emt 0:00:06]} 6. Re1 {[%emt 0:00:21]} d6 {[%emt 0:00:31]} 7. h3 {[%emt 0:01:35]} Na5 {[%emt 0:00:57]} 8. Nbd2 {[%emt 0:07:19]} c5 {[%emt 0:03:08]} 9. c3 {[%emt 0:05:37]} Nxc4 $11 {[%emt 0:16:27]} 10. Nxc4 {[%emt 0:06:50]} b5 {[%emt 0:18:49]} 11. Ne3 {[%emt 0:03:02]} g6 {[%emt 0:04:13]} 12. a4 {[%emt 0:09:24]} b4 {[%emt 0:09:45]} 13. c4 {[%emt 0:07:57]} Ne8 {[%emt 0:13:44]} 14. Nd5 {[%emt 0:04:13]} f5 {[%emt 0:05:03]} 15. Bh6 {[%emt 0:09:19]} Ng7 {[%emt 0:00:36]} 16. exf5 {[%emt 0:27:17]} Bxf5 {[%emt 0:03:39]} 17. Nd2 {[%emt 0:04:28]} Bxd3 {[%emt 0:14:23]} 18. f4 {[%emt 0:00:27]} Bh4 {[%emt 0:02:24]} 19. g3 {[%emt 0:04:31]} Bxg3 {[%emt 0:08:24]} 20. Re3 {[%emt 0:00:08]} Qh4 {[%emt 0:00:12]} 21. Rxd3 {[%emt 0:06:55]} Qxh3 {[%emt 0:01:00]} 22. Qe2 {[%emt 0:00:18]} Qxh6 {[%emt 0:03:12]} 23. Rxg3 {[%emt 0:00:09]} exf4 {[%emt 0:00:32]} 24. Rg2 {[%emt 0:01:49]} Rae8 {[%emt 0:02:30]} 25. Qf3 {[%emt 0:00:49]} Ne6 {[%emt 0:01:16]} 26. Ne4 {[%emt 0:00:43]} Nd4 {[%emt 0:01:41]} 27. Ndf6+ {[%emt 0:00:57]} Kh8 {[%emt 0:00:01]} 28. Qf2 {[%emt 0:00:07]} Re6 {[%emt 0:00:46]} 29. Rh2 {[%emt 0:00:02]} Qg7 {[%emt 0:00:51]} 30. Rxh7+ Qxh7 31. Nxh7 {[%emt 0:00:05]} Kxh7 {[%emt 0:00:02]} 32. Ng5+ {[%emt 0:00:02]} Kg8 {[%emt 0:00:32]} 33. Nxe6 {[%emt 0:00:01]} Nxe6 {[%emt 0:00:02]} 34. Re1 {[%emt 0:00:27]} Ng5 {[%emt 0:00:16]} 35. Qg2 {[%emt 0:01:26]} Rf5 {[%emt 0:00:22]} 36. Qa8+ {[%emt 0:00:29]} Rf8 {[%emt 0:00:01]} 37. Qd5+ {[%emt 0:00:01]} Nf7 {[%emt 0:00:11]} 38. Kf2 {[%emt 0:00:31]} Kg7 {[%emt 0:00:15]} 39. Re7 {[%emt 0:00:04]} Kf6 {[%emt 0:00:13]} 40. Qe6+ {[%emt 0:00:10]} Kg7 {[%emt 0:00:01]} 41. Kf3 {[%emt 0:00:27]} g5 {[%emt 0:00:14]} 42. Kg4 {[%emt 0:00:05]} a5 {[%emt 0:00:06]} 43. Kf5 {[%emt 0:00:03]} f3 {[%emt 0:00:15]} 44. Qg6+ {[%emt 0:00:02]} Kh8 {[%emt 0:00:03]} 45. Rxf7 {[%emt 0:00:20]} Rxf7+ {[%emt 0:00:04]} 46. Qxf7 {[%emt 0:00:02]} f2 {[%emt 0:00:01]} 47. Ke4 1-0

[Event "14th HSG Open 2019-BC"]
[Site "Hilversum"]
[Date "2019.06.23"]
[Round "6.3"]
[White "Jacobsen, Raymond"]
[Black "Mensing, Luana"]
[Result "1/2-1/2"]
[ECO "D00"]
[WhiteElo "1358"]
[BlackElo "1545"]
[Annotator "NA"]
[PlyCount "112"]
[EventDate "2019.06.21"]
[EventType "swiss"]
[EventCountry "NED"]
[SourceTitle "playchess.com"]
[Source "ChessBase"]
[SourceQuality "1"]
[TimeControl "6600+10"]

1. d4 {[%emt 0:00:00]} d5 {[%emt 0:00:00]} 2. Bf4 {[%emt 0:00:02]} e6 {[%emt 0:00:20]} 3. Nf3 {[%emt 0:00:12]} Nf6 {[%emt 0:00:41]} 4. Nbd2 {[%emt 0:00:27]} Nbd7 {[%emt 0:01:42]} 5. e3 {[%emt 0:01:46]} Be7 {[%emt 0:02:19]} 6. Bd3 {[%emt 0:00:17]} b6 {[%emt 0:00:57]} 7. h3 {[%emt 0:00:25]} Bb7 {[%emt 0:01:30]} 8. O-O {[%emt 0:00:44]} O-O {[%emt 0:00:22]} 9. c3 {[%emt 0:04:42]} c5 {[%emt 0:06:59]} 10. Re1 {[%emt 0:04:23]} a6 {[%emt 0:07:26]} 11. a4 {[%emt 0:06:44]} c4 {[%emt 0:06:33]} 12. Bc2 {[%emt 0:02:33]} Rc8 {[%emt 0:04:21]} 13. Ne5 {[%emt 0:03:08]} Nxe5 {[%emt 0:01:49]} 14. Bxe5 {[%emt 0:00:17]} Bd6 {[%emt 0:00:20]} 15. Nf3 {[%emt 0:02:19]} h6 {[%emt 0:03:42]} 16. Qe2 {[%emt 0:08:53]} Ne4 {[%emt 0:11:34]} 17. Bxd6 {[%emt 0:11:32]} Nxd6 {[%emt 0:01:30]} 18. Ne5 {[%emt 0:00:25]} Bc6 {[%emt 0:14:34]} 19. Qg4 {[%emt 0:05:22]} Qf6 {[%emt 0:11:08]} 20. Nxc6 {[%emt 0:11:58]} Rxc6 {[%emt 0:00:11]} 21. e4 {[%emt 0:00:17]} dxe4 {[%emt 0:01:37]} 22. Bxe4 {[%emt 0:00:10]} Nxe4 {[%emt 0:00:12]} 23. Qxe4 {[%emt 0:03:20]} Rfc8 {[%emt 0:00:51]} 24. Re3 {[%emt 0:01:05]} Qg5 {[%emt 0:03:55]} 25. Rd1 {[%emt 0:01:51]} Qa5 {[%emt 0:03:32]} 26. Qc2 {[%emt 0:01:12]} Rd6 {[%emt 0:00:39]} 27. Re5 {[%emt 0:01:37]} Rd5 {[%emt 0:00:29]} 28. Rde1 {[%emt 0:00:48]} Rcd8 {[%emt 0:00:33]} 29. f4 {[%emt 0:03:06]} Rxe5 {[%emt 0:03:47]} 30. Rxe5 {[%emt 0:00:25]} Rd5 {[%emt 0:00:20]} 31. b3 {[%emt 0:05:05]} cxb3 {[%emt 0:03:09]} 32. Qxb3 {[%emt 0:00:08]} Rxe5 {[%emt 0:00:08]} 33. fxe5 {[%emt 0:00:32]} Kf8 {[%emt 0:03:28]} 34. Kf2 {[%emt 0:01:20]} Ke8 {[%emt 0:00:40]} 35. Ke3 {[%emt 0:01:15]} b5 {[%emt 0:01:35]} 36. axb5 {[%emt 0:01:09]} axb5 {[%emt 0:00:04]} 37. Kd3 {[%emt 0:01:34]} Kd7 {[%emt 0:01:35]} 38. d5 {[%emt 0:06:05]} exd5 {[%emt 0:02:51]} 39. Qxd5+ {[%emt 0:00:10]} Ke7 {[%emt 0:00:30]} 40. Qd6+ {[%emt 0:00:19]} Ke8 {[%emt 0:00:06]} 41. e6 {[%emt 0:01:18]} fxe6 {[%emt 0:00:53]} 42. Qxe6+ {[%emt 0:00:07]} Kf8 {[%emt 0:00:05]} 43. Qd6+ {[%emt 0:01:08]} Kf7 {[%emt 0:00:16]} 44. Qd5+ {[%emt 0:00:46]} Kg6 {[%emt 0:00:52]} 45. Qe4+ {[%emt 0:01:09]} Kf7 {[%emt 0:00:22]} 46. g4 {[%emt 0:01:18]} Qa6 {[%emt 0:00:44]} 47. Qf5+ {[%emt 0:01:00]} Kg8 {[%emt 0:00:41]} 48. Qd5+ {[%emt 0:00:20]} Kh7 {[%emt 0:00:33]} 49. Kd4 {[%emt 0:00:39]} Qb6+ {[%emt 0:01:03]} 50. Ke4 {[%emt 0:00:40]} b4 {[%emt 0:00:16]} 51. Qf5+ {[%emt 0:02:12]} Kg8 {[%emt 0:00:02]} 52. Qd5+ {[%emt 0:00:08]} Kh7 {[%emt 0:00:02]} 53. Qf5+ {[%emt 0:00:27]} Kg8 {[%emt 0:00:02]} 54. Qc8+ {[%emt 0:00:58]} Kh7 {[%emt 0:00:03]} 55. Qf5+ {[%emt 0:00:20]} Kg8 {[%emt 0:00:06]} 56. Qd5+ {[%emt 0:02:22]} Kh7 1/2-1/2

[Event "14th HSG Open 2019-BC"]
[Site "Hilversum"]
[Date "2019.06.23"]
[Round "6.4"]
[White "Kazarjan, Gachatur"]
[Black "Boons, Joris"]
[Result "0-1"]
[ECO "B77"]
[WhiteElo "1484"]
[BlackElo "1512"]
[Annotator "NA"]
[PlyCount "82"]
[EventDate "2019.06.21"]
[EventType "swiss"]
[EventCountry "NED"]
[SourceTitle "playchess.com"]
[Source "ChessBase"]
[SourceQuality "1"]
[TimeControl "6600+10"]

1. e4 {[%emt 0:00:00]} c5 {[%emt 0:00:00]} 2. Nf3 {[%emt 0:00:00]} d6 {[%emt 0:00:13]} 3. d4 {[%emt 0:00:11]} cxd4 {[%emt 0:00:03]} 4. Nxd4 {[%emt 0:00:06]} Nf6 {[%emt 0:00:06]} 5. Nc3 {[%emt 0:00:06]} g6 {[%emt 0:01:43]} 6. Bc4 {[%emt 0:01:21]} Bg7 {[%emt 0:02:53]} 7. f3 {[%emt 0:01:21]} O-O {[%emt 0:01:02]} 8. Be3 {[%emt 0:00:20]} Nc6 {[%emt 0:05:21]} 9. Qd2 {[%emt 0:01:45]} Nxd4 {[%emt 0:05:22]} 10. Bxd4 {[%emt 0:01:19]} a6 {[%emt 0:06:03]} 11. O-O-O {[%emt 0:00:32]} Bd7 {[%emt 0:00:34]} 12. g4 {[%emt 0:00:28]} b5 {[%emt 0:06:46]} 13. Be2 {[%emt 0:02:17]} b4 {[%emt 0:01:29]} 14. Nd5 {[%emt 0:00:37]} Nxd5 {[%emt 0:00:40]} 15. Bxg7 {[%emt 0:00:18]} Kxg7 {[%emt 0:00:40]} 16. exd5 {[%emt 0:00:14]} Qa5 {[%emt 0:00:34]} 17. Qd4+ {[%emt 0:00:47]} Kg8 {[%emt 0:00:32]} 18. Kb1 {[%emt 0:00:12]} Rfc8 {[%emt 0:01:21]} 19. Bd3 {[%emt 0:01:35]} e5 {[%emt 0:02:22]} 20. Qe4 {[%emt 0:01:07]} f5 {[%emt 0:01:28]} 21. gxf5 {[%emt 0:00:34]} Bxf5 {[%emt 0:00:47]} 22. Qe2 {[%emt 0:00:10]} Bxd3 {[%emt 0:00:48]} 23. Qxd3 {[%emt 0:01:22]} Qb5 {[%emt 0:00:33]} 24. Qxb5 {[%emt 0:00:41]} axb5 {[%emt 0:00:02]} 25. b3 {[%emt 0:03:14]} Rf8 {[%emt 0:01:40]} 26. Rd3 {[%emt 0:01:07]} Rf4 {[%emt 0:00:33]} 27. h4 {[%emt 0:00:45]} Kg7 {[%emt 0:00:44]} 28. h5 {[%emt 0:00:54]} Raf8 {[%emt 0:03:12]} 29. hxg6 {[%emt 0:01:12]} hxg6 {[%emt 0:04:51]} 30. Rh3 {[%emt 0:00:49]} g5 {[%emt 0:01:52]} 31. Kb2 {[%emt 0:01:20]} Kg6 {[%emt 0:00:27]} 32. c3 {[%emt 0:01:13]} e4 {[%emt 0:05:11]} 33. fxe4 {[%emt 0:00:33]} Rf2+ {[%emt 0:01:34]} 34. Kc1 {[%emt 0:00:04]} Rxa2 {[%emt 0:03:40]} 35. Kb1 {[%emt 0:01:58]} Re2 {[%emt 0:00:34]} 36. Rhf3 {[%emt 0:01:21]} Rxf3 {[%emt 0:03:06]} 37. Rxf3 {[%emt 0:00:08]} g4 {[%emt 0:00:04]} 38. Rf8 {[%emt 0:00:50]} bxc3 {[%emt 0:07:11]} 39. Rg8+ {[%emt 0:01:04]} Kh5 {[%emt 0:00:54]} 40. Rh8+ {[%emt 0:01:19]} Kg5 {[%emt 0:00:24]} 41. Rd8 {[%emt 0:00:20]} g3 {[%emt 0:00:28]} 0-1